bitfinex/quotes_SOLUSD_20240621
["timestamp","ask_amount","ask_price","bid_price","bid_amount"]
[1718985414142,20.0,131.18,131.13,6.1005]
[1718985414332,6.0987,131.18,131.13,6.1005]
[1718985414531,20.0,131.17,131.14,6.1002]
[1718985414736,6.0985,131.18,131.13,6.1006]
[1718985414948,20.0,131.17,131.13,6.1006]
[1718985415435,20.0,131.17,131.14,6.1003]
[1718985415631,20.0,131.18,131.14,6.1003]
[1718985416150,26.0985,131.18,131.13,6.1005]
[1718985416540,20.0,131.18,131.12,15.2522]
[1718985416745,20.0,131.19,131.15,6.0996]
[1718985416924,26.0983,131.19,131.14,6.1001]
[1718985417244,20.0,131.19,131.13,6.1005]
[1718985417450,6.0987,131.18,131.13,6.1005]
[1718985417629,20.0,131.17,131.13,6.1005]
[1718985418624,26.099,131.17,131.13,6.1005]
[1718985418836,26.099,131.17,131.12,6.101]
[1718985419327,20.0,131.17,131.11,6.1017]
[1718985419627,6.0996,131.16,131.11,6.1017]
[1718985419852,20.0,131.15,131.12,6.1012]
[1718985420346,20.0,131.15,131.11,6.1015]
[1718985420522,26.0996,131.16,131.11,6.1015]
[1718985420721,6.1001,131.15,131.1,6.1019]
[1718985420922,20.0,131.16,131.07,6.1033]
[1718985420923,6.1016,131.12,131.07,6.1033]
[1718985421149,6.1005,131.14,131.09,6.1024]
[1718985421331,26.101,131.13,131.08,6.103]
[1718985421533,26.101,131.13,131.1,6.1021]
[1718985421534,20.0,131.13,131.1,6.1021]
[1718985421935,20.0,131.14,131.1,6.1018]
[1718985422135,6.1002,131.15,131.1,6.1018]
[1718985422352,20.0,131.14,131.05,21.4572]
[1718985422553,26.1005,131.14,131.09,6.1024]
[1718985422763,26.1005,131.14,131.1,6.1021]
[1718985422966,20.0,131.14,131.1,6.1021]
[1718985423458,6.0983,131.19,131.08,30.5155]
[1718985423762,21.8646,131.2,131.12,15.2522]
[1718985424053,20.0,131.19,131.12,15.2522]
[1718985424259,20.0,131.19,131.1,16.27]
[1718985424260,6.0996,131.16,131.11,6.1016]
[1718985424464,6.0992,131.17,131.12,6.1012]
[1718985424655,20.0,131.19,131.08,15.2569]
[1718985424835,6.099,131.17,131.12,6.101]
[1718985425034,20.0,131.16,131.12,6.101]
[1718985425280,26.0994,131.16,131.12,6.101]
[1718985425456,20.0,131.16,131.12,6.101]
[1718985426140,20.0,131.16,131.13,6.1006]
[1718985426551,20.0,131.17,131.13,6.1006]
[1718985426854,26.0991,131.17,131.12,6.1011]
[1718985427271,26.0991,131.17,131.12,6.101]
[1718985427576,6.0994,131.16,131.11,6.1016]
[1718985427793,20.0,131.15,131.12,6.101]
[1718985428280,20.0,131.15,131.11,6.1016]
[1718985428641,20.0,131.15,131.07,0.17]
[1718985428952,6.1005,131.14,131.09,6.1024]
[1718985429672,6.1,131.15,131.1,6.1021]
[1718985429872,20.0,131.14,131.11,6.1017]
[1718985430173,20.0,131.14,131.11,6.1015]
[1718985430479,20.0,131.15,131.11,6.1015]
[1718985430863,20.0,131.15,131.11,6.1013]
[1718985431260,26.0998,131.15,131.11,6.1013]
[1718985431561,20.0,131.15,131.08,15.2578]
[1718985432080,20.0,131.15,131.12,6.101]
[1718985432378,20.0,131.16,131.11,6.1016]
[1718985432554,6.0996,131.16,131.12,6.1012]
[1718985432756,20.0,131.15,131.1,15.2554]
[1718985432950,26.0992,131.17,131.12,6.101]
[1718985433159,6.0994,131.16,131.12,6.101]
[1718985433359,26.1002,131.15,131.07,60.5986]
[1718985433559,26.1002,131.15,131.12,6.101]
[1718985433560,20.0,131.15,131.12,6.101]
[1718985433764,0.17,131.18,131.08,0.17]
[1718985433961,21.8646,131.2,131.17,6.0989]
[1718985433962,15.5095,131.2,131.17,6.0989]
[1718985434162,20.0,131.19,131.17,6.0989]
[1718985434575,25.59201268,131.22,131.12,6.3795]
[1718985434880,35.2416,131.22,131.15,6.0995]
[1718985435078,6.0982,131.19,131.12,21.6326]
[1718985435288,6.0989,131.17,131.1,15.2554]
[1718985435967,20.0,131.18,131.12,15.253]
[1718985436268,6.0973,131.21,131.16,6.0991]
[1718985436461,20.0,131.2,131.16,6.0991]
[1718985436671,20.0,131.2,131.17,6.0988]
[1718985437188,43.23473437,131.23,131.19,6.0979]
[1718985437189,22.3886,131.23,131.19,6.0979]
[1718985437478,645.76076693,131.28,131.12,46.1944]
[1718985437479,20.0,131.22,131.17,15.2464]
[1718985437668,11.7813697,131.26,131.17,15.2464]
[1718985437990,6.0957,131.24,131.2,6.0972]
[1718985438192,20.0,131.23,131.2,6.0972]
[1718985438686,20.0,131.23,131.2,6.0973]
[1718985438989,26.0962,131.23,131.19,6.0977]
[1718985439162,6.0973,131.21,131.16,6.0991]
[1718985439562,6.0973,131.21,131.17,6.0988]
[1718985439788,6.0968,131.22,131.17,6.0988]
[1718985439992,20.0,131.21,131.18,6.0983]
[1718985440163,0.17,131.25,131.14,6.1105]
[1718985440358,11.7813697,131.26,131.21,6.097]
[1718985440359,20.0,131.24,131.21,6.097]
[1718985440564,20.0,131.24,131.2,6.0973]
[1718985441092,6.0947,131.26,131.22,6.0963]
[1718985441271,20.0,131.25,131.22,6.0963]
[1718985441473,20.0,131.26,131.23,6.0961]
[1718985441801,20.0,131.26,131.18,16.3954]
[1718985441974,6.0938,131.28,131.23,6.0959]
[1718985442300,6.0954,131.25,131.18,31.6414]
[1718985442467,20.0,131.29,131.2,6.0973]
[1718985442996,6.0954,131.25,131.21,6.097]
[1718985443189,6.0948,131.26,131.21,6.097]
[1718985443571,6.0953,131.25,131.21,6.0968]
[1718985443771,6.0949,131.26,131.21,6.0968]
[1718985444187,20.0,131.25,131.21,6.0968]
[1718985444377,20.0,131.25,131.18,16.3954]
[1718985444378,6.0962,131.23,131.18,16.3954]
[1718985444572,6.0962,131.23,131.18,22.4936]
[1718985445096,6.0962,131.23,131.19,6.0978]
[1718985445281,6.0958,131.24,131.2,6.0974]
[1718985445471,26.0954,131.25,131.2,6.0974]
[1718985445668,20.0,131.25,131.18,16.3954]
[1718985445870,5.6786034,131.29,131.18,16.3954]
[1718985445871,20.0,131.28,131.24,6.0957]
[1718985446095,20.0,131.28,131.27,6.0943]
[1718985446271,27.32837639,131.33,131.28,6.0938]
[1718985446593,20.0,131.32,131.28,6.0938]
[1718985446770,20.0,131.32,131.29,6.0931]
[1718985447392,20.0,131.33,131.29,6.0931]
[1718985447588,20.0,131.33,131.25,15.238]
[1718985447823,20.0,131.33,131.29,6.0933]
[1718985448267,20.0,131.33,131.3,6.0928]
[1718985448467,20.0,131.33,131.29,6.0931]
[1718985448684,6.0907,131.35,131.3,6.0926]
[1718985448894,26.091,131.34,131.3,6.0926]
[1718985449100,20.0,131.34,131.3,6.0926]
[1718985449668,6.0245,131.37,131.32,6.0918]
[1718985449996,12.2274,131.4,131.35,6.0903]
[1718985450174,12.2274,131.4,131.28,16.6247]
[1718985450175,6.0887,131.39,131.28,16.6247]
[1718985450380,20.0,131.38,131.29,65.34]
[1718985450588,6.0893,131.38,131.33,6.091]
[1718985450791,6.09,131.37,131.32,6.0917]
[1718985450980,20.0,131.37,131.33,6.0915]
[1718985451184,26.0897,131.37,131.32,6.0918]
[1718985451574,20.0,131.37,131.3,15.2321]
[1718985451777,6.0893,131.38,131.33,6.0911]
[1718985451990,20.0,131.37,131.28,16.6247]
[1718985452192,20.0,131.4,131.28,31.859]
[1718985452193,6.0907,131.35,131.28,31.859]
[1718985452493,6.0902,131.36,131.31,6.0924]
[1718985452695,6.0889,131.39,131.34,6.091]
[1718985452902,26.0896,131.38,131.3,15.2317]
[1718985453194,20.0,131.38,131.31,0.17]
[1718985453401,20.0,131.38,131.31,45.17]
[1718985453604,6.0884,131.4,131.36,6.0901]
[1718985453777,20.0,131.39,131.35,6.0905]
[1718985454097,20.0,131.39,131.36,6.09]
[1718985454477,20.0,131.4,131.36,6.09]
[1718985455699,20.0,131.4,131.32,0.17]
[1718985455879,6.0885,131.4,131.35,6.0905]
[1718985456072,20.0,131.39,131.35,6.0905]
[1718985456581,20.0,131.39,131.31,0.17]
[1718985456779,6.0889,131.39,131.34,6.0907]
[1718985457003,20.0,131.38,131.35,6.0905]
[1718985457579,20.0,131.39,131.35,6.0905]
[1718985457781,20.0,131.39,131.3,45.0]
[1718985458001,6.0894,131.38,131.33,6.0912]
[1718985458200,6.0902,131.36,131.31,6.0923]
[1718985458402,6.0903,131.36,131.31,6.0923]
[1718985458710,6.0913,131.34,131.29,6.093]
[1718985459083,6.0906,131.35,131.3,6.0927]
[1718985459407,20.0,131.34,131.3,6.0927]
[1718985459996,6.0902,131.36,131.31,6.0923]
[1718985460196,6.0896,131.38,131.33,6.0912]
[1718985460501,26.0897,131.37,131.29,15.2323]
[1718985460677,26.0897,131.37,131.3,0.17]
[1718985460883,26.0897,131.37,131.32,6.0917]
[1718985461093,20.0,131.37,131.34,6.0908]
[1718985461297,6.0904,131.36,131.3,0.34]
[1718985461482,6.0904,131.36,131.28,31.8586]
[1718985461483,6.0904,131.36,131.31,6.0923]
[1718985462606,22.1011,131.37,131.27,6.4832]
[1718985462780,65.17,131.36,131.27,6.4832]
[1718985462977,15.2273,131.35,131.25,16.4998]
[1718985463280,6.0922,131.32,131.27,6.0941]
[1718985463495,20.0,131.31,131.27,6.0941]
[1718985464207,20.0,131.31,131.26,6.0946]
[1718985464507,20.0,131.33,131.26,6.0946]
[1718985464886,6.0925,131.31,131.26,6.0945]
[1718985465097,6.093,131.3,131.24,6.3459]
[1718985465307,6.0926,131.31,131.26,6.0947]
[1718985465602,0.17,131.32,131.24,6.3459]
[1718985465806,20.0,131.33,131.24,21.5849]
[1718985466004,6.0924,131.31,131.24,21.5849]
[1718985466178,6.0924,131.31,131.26,6.0945]
[1718985466998,26.0916,131.33,131.29,6.0933]
[1718985467389,6.092,131.32,131.27,6.094]
[1718985467698,20.0,131.31,131.27,6.094]
[1718985467900,20.0,131.31,131.28,6.0938]
[1718985469598,6.0935,131.29,131.24,6.0953]
[1718985469801,6.093,131.3,131.25,6.095]
[1718985470108,20.0,131.31,131.21,37.7728]
[1718985470109,20.0,131.29,131.21,37.7728]
[1718985470325,6.0935,131.29,131.22,45.34]
[1718985470505,6.0931,131.3,131.25,6.0951]
[1718985470886,20.0,131.29,131.26,6.0946]
[1718985471494,20.0,131.3,131.26,6.0946]
[1718985472317,6.0938,131.28,131.23,6.0959]
[1718985473013,6.0935,131.29,131.21,37.772]
[1718985473190,26.0938,131.28,131.23,6.0959]
[1718985473391,20.0,131.3,131.24,6.0955]
[1718985473607,20.0,131.3,131.23,6.096]
[1718985473915,6.0936,131.29,131.24,6.0954]
[1718985474098,20.0,131.28,131.24,6.0954]
[1718985474502,67.77403165,131.34,131.22,29.31]
[1718985474806,6.0923,131.32,131.27,6.094]
[1718985474998,20.0,131.33,131.24,15.2382]
[1718985475198,20.0,131.31,131.27,6.0941]
[1718985475813,20.0,131.31,131.27,6.0939]
[1718985476112,20.0,131.31,131.29,6.093]
[1718985476317,20.0,131.33,131.29,6.093]
[1718985476522,20.0,131.33,131.3,6.0926]
[1718985476693,20.0,131.33,131.31,6.0924]
[1718985476890,20.0,131.34,131.31,6.0922]
[1718985477090,20.0,131.35,131.31,6.0922]
[1718985477497,6.0912,131.34,131.3,6.0928]
[1718985477693,6.0912,131.34,131.27,21.5061]
[1718985478007,20.0,131.33,131.25,29.31]
[1718985478209,15.2296,131.33,131.27,6.0943]
[1718985478515,6.0926,131.31,131.26,6.0945]
[1718985478895,6.0926,131.31,131.27,6.0942]
[1718985479203,20.0,131.32,131.25,6.095]
[1718985479403,20.0,131.32,131.24,21.7413]
[1718985479723,20.0,131.32,131.26,6.0945]
[1718985479915,20.0,131.32,131.27,6.0942]
[1718985480214,0.17,131.34,131.24,36.9796]
[1718985480418,45.34,131.34,131.24,36.9796]
[1718985480734,20.0,131.33,131.29,6.0931]
[1718985481527,261.1903,131.36,131.31,6.0922]
[1718985482110,261.1902,131.36,131.32,6.0918]
[1718985482317,6.0902,131.36,131.31,6.0922]
[1718985482515,15.2231,131.38,131.26,30.4734]
[1718985482516,6.0894,131.38,131.27,100.0]
[1718985482845,6.0892,131.38,131.33,6.0913]
[1718985483120,6.0887,131.39,131.34,6.091]
[1718985483319,28.0445,131.4,131.35,6.0905]
[1718985483504,20.0,131.39,131.36,6.09]
[1718985483710,26.0888,131.39,131.34,6.0907]
[1718985484016,6.0888,131.39,131.34,6.0907]
[1718985484213,21.757,131.4,131.35,6.0904]
[1718985484411,261.3875,131.43,131.32,15.2291]
[1718985484412,6.088,131.41,131.36,6.09]
[1718985484613,6.0889,131.39,131.34,6.0907]
[1718985484796,6.0885,131.4,131.35,6.0905]
[1718985485004,6.0892,131.38,131.33,6.0913]
[1718985485725,6.0892,131.38,131.34,6.091]
[1718985485932,6.0889,131.39,131.34,6.091]
[1718985486103,20.0,131.38,131.34,6.091]
[1718985486602,20.0,131.38,131.31,6.0922]
[1718985486603,6.0904,131.36,131.31,6.0922]
[1718985486803,20.0,131.35,131.3,6.0925]
[1718985487005,26.0906,131.35,131.3,6.0925]
[1718985487204,20.0,131.35,131.27,22.9204]
[1718985487509,26.2598,131.37,131.32,6.0916]
[1718985488025,20.0,131.37,131.28,30.4688]
[1718985488201,20.0,131.41,131.29,45.34]
[1718985488403,26.0875,131.42,131.37,6.0894]
[1718985488925,20.0,131.42,131.34,15.2268]
[1718985489129,26.0875,131.42,131.37,6.0896]
[1718985489438,6.0878,131.41,131.37,6.0896]
[1718985489735,20.0,131.4,131.37,6.0896]
[1718985490033,20.0,131.4,131.33,21.9709]
[1718985490215,6.0884,131.4,131.33,21.9709]
[1718985490532,20.0,131.39,131.33,37.1987]
[1718985491028,20.0,131.42,131.33,37.1987]
[1718985491506,6.0883,131.4,131.35,6.0903]
[1718985491704,6.0883,131.4,131.33,37.1987]
[1718985491705,20.0,131.39,131.36,6.09]
[1718985491932,21.9561,131.43,131.35,15.2263]
[1718985492113,20.0,131.42,131.38,6.0889]
[1718985492642,26.0874,131.42,131.38,6.0889]
[1718985492927,20.0,131.42,131.34,0.17]
[1718985493130,6.0883,131.4,131.36,6.0899]
[1718985493336,6.0879,131.41,131.36,6.0898]
[1718985493721,20.0,131.4,131.33,21.9709]
[1718985493915,20.0,131.42,131.33,21.9709]
[1718985493916,35.2192,131.42,131.35,6.0905]
[1718985494115,35.2192,131.42,131.34,6.0908]
[1718985494315,6.0888,131.39,131.35,6.0905]
[1718985494823,6.0888,131.39,131.33,21.9709]
[1718985494824,6.088,131.41,131.36,6.0901]
[1718985495035,20.0,131.4,131.36,6.0901]
[1718985495712,26.0883,131.4,131.36,6.0901]
[1718985495912,26.0883,131.4,131.35,6.0904]
[1718985496330,6.0892,131.38,131.34,6.0909]
[1718985496521,20.0,131.37,131.31,15.23]
[1718985496739,20.0,131.37,131.35,6.0903]
[1718985497133,20.0,131.38,131.34,6.0908]
[1718985497352,26.0893,131.38,131.31,15.23]
[1718985497860,20.0,131.38,131.31,15.23]
[1718985498039,20.0,131.38,131.36,6.0898]
[1718985498244,20.0,131.4,131.36,6.0898]
[1718985498633,26.0883,131.4,131.36,6.0898]
[1718985499035,26.0883,131.4,131.35,6.0903]
[1718985499236,26.0883,131.4,131.36,6.0901]
[1718985499430,26.0883,131.4,131.35,6.0903]
[1718985499632,20.0,131.4,131.3,46.0357]
[1718985499826,20.34,131.41,131.31,45.0]
[1718985500026,45.0,131.4,131.31,45.0]
[1718985500265,20.0,131.39,131.31,60.2303]
[1718985500440,26.089,131.39,131.34,6.0908]
[1718985501352,20.0,131.39,131.35,6.0905]
[1718985501540,20.0,131.39,131.36,6.09]
[1718985501851,6.428,131.41,131.33,15.2278]
[1718985501852,20.0,131.4,131.33,15.2278]
[1718985502775,20.0,131.4,131.37,6.0896]
[1718985503245,20.0,131.4,131.36,6.0899]
[1718985503652,20.0,131.4,131.37,6.0893]
[1718985503849,20.0,131.41,131.37,6.0893]
[1718985504440,21.7556,131.43,131.35,15.2253]
[1718985504764,27.02967333,131.45,131.37,15.2233]
[1718985504765,6.0861,131.45,131.37,15.2233]
[1718985505937,6.0861,131.45,131.41,6.0878]
[1718985506346,20.0,131.44,131.4,6.088]
[1718985507257,20.0,131.44,131.41,6.0875]
[1718985507566,20.0,131.45,131.41,6.0875]
[1718985507745,26.086,131.45,131.4,6.088]
[1718985511035,20.0,131.45,131.41,6.0877]
[1718985512667,26.0861,131.45,131.41,6.0877]
[1718985513269,20.0,131.45,131.41,6.0877]
[1718985513772,6.0851,131.47,131.39,15.2207]
[1718985513945,28.0287,131.48,131.43,6.0866]
[1718985514137,20.0,131.47,131.43,6.0866]
[1718985514345,20.0,131.47,131.44,6.0863]
[1718985514558,6.0857,131.46,131.39,15.2217]
[1718985514737,26.0852,131.47,131.42,6.0871]
[1718985515160,26.0852,131.47,131.43,6.0868]
[1718985515469,26.0852,131.47,131.42,6.0871]
[1718985515656,26.0852,131.47,131.43,6.0868]
[1718985516333,20.0,131.47,131.43,6.0868]
[1718985516962,26.085,131.47,131.43,6.0868]
[1718985517363,20.0,131.47,131.38,15.2226]
[1718985517669,6.0862,131.45,131.41,6.0878]
[1718985517837,26.0852,131.47,131.42,6.0872]
[1718985518039,6.0855,131.46,131.42,6.0872]
[1718985518264,20.0,131.45,131.42,6.0872]
[1718985519678,20.0,131.45,131.43,6.0868]
[1718985519882,20.0,131.47,131.43,6.0868]
[1718985520173,26.0851,131.47,131.43,6.0868]
[1718985520359,26.0851,131.47,131.42,6.0871]
[1718985520977,26.0851,131.47,131.43,6.0868]
[1718985521679,15.2151,131.45,131.34,22.3502]
[1718985521873,22.1139,131.48,131.34,22.3502]
[1718985521874,6.0888,131.39,131.35,6.0905]
[1718985522083,6.0885,131.4,131.35,6.0905]
[1718985522563,35.5562,131.44,131.37,6.0893]
[1718985522914,45.0,131.43,131.34,37.5768]
[1718985523050,6.088,131.41,131.36,6.0898]
[1718985523255,26.0883,131.4,131.36,6.0898]
[1718985523758,26.0883,131.4,131.35,6.0905]
[1718985524158,26.0883,131.4,131.36,6.09]
[1718985525450,26.0883,131.4,131.35,6.0904]
[1718985525655,20.0,131.4,131.36,6.09]
[1718985526683,20.0,131.4,131.33,30.4571]
[1718985526887,20.0,131.41,131.38,6.0888]
[1718985528464,15.902,131.44,131.36,15.2251]
[1718985528664,15.902,131.44,131.4,6.088]
[1718985528869,20.0,131.43,131.4,6.088]
[1718985529378,20.0,131.43,131.41,6.0877]
[1718985529699,20.0,131.43,131.38,15.2222]
[1718985529999,20.0,131.44,131.4,6.088]
[1718985530562,21.4238,131.43,131.3,22.8926]
[1718985530767,45.17,131.42,131.3,52.1326]
[1718985530992,20.0,131.41,131.3,52.1326]
[1718985531261,20.0,131.41,131.32,15.2296]
[1718985531461,26.0879,131.41,131.36,6.0898]
[1718985531978,26.0879,131.41,131.37,6.0895]
[1718985532168,20.0,131.41,131.38,6.0891]
[1718985532368,20.0,131.41,131.39,6.0886]
[1718985532575,20.0,131.42,131.38,6.0889]
[1718985532877,20.0,131.42,131.32,45.6884]
[1718985533081,6.0885,131.4,131.35,6.0902]
[1718985533395,20.0,131.39,131.36,6.0901]
[1718985533973,20.0,131.42,131.36,6.0901]
[1718985534171,6.0879,131.41,131.36,6.0901]
[1718985534369,20.0,131.4,131.36,6.0901]
[1718985537793,20.0,131.4,131.35,15.2262]
[1718985537995,26.0873,131.42,131.37,6.0894]
[1718985538294,6.0878,131.41,131.37,6.0894]
[1718985538499,20.0,131.4,131.37,6.0894]
[1718985539498,20.0,131.41,131.37,6.0894]
[1718985540170,6.0885,131.4,131.35,6.0901]
[1718985540370,20.0,131.39,131.3,22.8926]
[1718985540577,65.17,131.39,131.3,22.8926]
[1718985540896,0.17,131.38,131.31,6.0921]
[1718985541069,6.2594,131.38,131.33,6.0913]
[1718985541399,6.2594,131.38,131.3,22.8926]
[1718985541400,20.0,131.37,131.31,15.231]
[1718985541575,20.0,131.37,131.33,6.0912]
[1718985542002,6.0897,131.37,131.32,6.0917]
[1718985542183,20.0,131.36,131.32,6.0917]
[1718985542391,26.0902,131.36,131.31,6.0922]
[1718985543002,20.0,131.36,131.32,6.0918]
[1718985543300,20.0,131.36,131.34,6.0907]
[1718985543476,26.0894,131.38,131.33,6.0912]
[1718985543675,20.0,131.38,131.28,44.4735]
[1718985543884,6.0897,131.37,131.32,6.0918]
[1718985544398,20.0,131.36,131.32,6.0918]
[1718985545206,26.0902,131.36,131.31,6.0923]
[1718985546396,20.0,131.36,131.32,6.0919]
[1718985547113,20.0,131.36,131.27,30.6395]
[1718985547114,6.0909,131.35,131.3,6.0925]
[1718985547411,6.0909,131.35,131.3,6.0927]
[1718985547784,20.0,131.36,131.33,6.0913]
[1718985547998,26.0898,131.37,131.32,6.0918]
[1718985548190,26.0898,131.37,131.27,30.6395]
[1718985548191,20.0,131.37,131.31,15.2303]
[1718985548475,26.0887,131.39,131.35,6.0903]
[1718985548890,20.0,131.39,131.35,6.0903]
[1718985550195,26.0887,131.39,131.35,6.0903]
[1718985550600,20.0,131.39,131.35,6.0903]
[1718985550896,20.0,131.39,131.33,37.1673]
[1718985551082,26.0875,131.42,131.37,6.0893]
[1718985551482,20.0,131.42,131.4,6.0879]
[1718985551783,16.5087,131.48,131.39,15.2207]
[1718985551979,16.5087,131.48,131.42,6.0872]
[1718985551980,20.0,131.47,131.42,6.0872]
[1718985552179,20.0,131.47,131.39,15.2207]
[1718985552398,26.0852,131.47,131.39,15.2207]
[1718985552615,20.0,131.47,131.41,6.0875]
[1718985552795,20.0,131.47,131.39,15.2207]
[1718985553104,26.0853,131.47,131.39,15.2207]
[1718985553316,6.0859,131.45,131.4,6.088]
[1718985553517,20.0,131.47,131.36,29.24]
[1718985553686,6.0863,131.45,131.4,6.088]
[1718985553888,20.0,131.44,131.4,6.088]
[1718985554096,6.0873,131.42,131.36,29.24]
[1718985554397,20.0,131.44,131.35,15.3962]
[1718985554398,26.0866,131.44,131.35,15.3962]
[1718985554582,26.0866,131.44,131.39,6.0886]
[1718985554783,20.0,131.44,131.4,6.0878]
[1718985554985,20.0,131.45,131.4,6.0878]
[1718985555190,20.0,131.45,131.39,15.2217]
[1718985555408,6.0856,131.46,131.41,6.0876]
[1718985555593,20.0,131.45,131.41,6.0876]
[1718985555908,20.0,131.45,131.36,29.41]
[1718985555909,26.0863,131.45,131.4,6.0881]
[1718985556207,20.0,131.45,131.4,6.0881]
[1718985556393,6.0857,131.46,131.41,6.0877]
[1718985556703,20.0,131.45,131.36,29.41]
[1718985556904,0.17,131.44,131.36,6.0899]
[1718985557204,6.0883,131.4,131.35,6.0904]
[1718985557387,20.0,131.39,131.36,6.0897]
[1718985557592,20.0,131.39,131.37,6.0896]
[1718985557984,20.0,131.41,131.33,21.9393]
[1718985558299,20.0,131.42,131.4,6.0881]
[1718985558489,20.0,131.44,131.41,6.0877]
[1718985558695,26.0859,131.45,131.4,6.0879]
[1718985558891,26.0859,131.45,131.41,6.0877]
[1718985558892,20.0,131.45,131.41,6.0877]
[1718985559296,20.0,131.45,131.42,6.0872]
[1718985559589,26.0851,131.47,131.42,6.0872]
[1718985560301,6.0855,131.46,131.41,6.0876]
[1718985560609,20.0,131.45,131.42,6.0871]
[1718985560809,26.0852,131.47,131.42,6.0871]
[1718985561393,20.0,131.47,131.43,6.0867]
[1718985561593,26.085,131.47,131.42,6.0871]
[1718985562000,0.8533461,131.49,131.45,6.0858]
[1718985562291,0.8533461,131.49,131.47,6.0849]
[1718985562485,20.8533461,131.49,131.47,6.0849]
[1718985562790,0.8533461,131.49,131.46,6.0852]
[1718985562997,20.0,131.48,131.46,6.0852]
[1718985563202,20.0,131.48,131.43,15.2163]
[1718985563203,0.8533461,131.49,131.45,6.0857]
[1718985563513,0.8533461,131.49,131.46,6.0854]
[1718985564213,0.8533461,131.49,131.43,15.2163]
[1718985564520,0.8533461,131.49,131.41,29.24]
[1718985564521,0.8533461,131.49,131.44,15.215]
[1718985564701,0.8533461,131.49,131.47,6.0848]
[1718985565303,0.8533461,131.49,131.48,6.0845]
[1718985568113,0.8533461,131.49,131.45,22.5639]
[1718985568114,0.8533461,131.49,131.47,6.0848]
[1718985568302,0.8533461,131.49,131.45,22.5639]
[1718985568496,0.8533461,131.49,131.46,6.0851]
[1718985568703,0.8533461,131.49,131.43,15.2163]
[1718985568911,0.8533461,131.49,131.46,6.0852]
[1718985569113,0.8533461,131.49,131.47,6.0849]
[1718985570127,0.8533461,131.49,131.46,6.0853]
[1718985570323,0.8533461,131.49,131.44,15.2151]
[1718985570498,0.8533461,131.49,131.48,6.0845]
[1718985571319,0.8533461,131.49,131.48,66.4659]
[1718985571527,0.8533461,131.49,131.48,66.6359]
[1718985571730,0.8533461,131.49,131.48,51.4245]
[1718985574110,0.8533461,131.49,131.48,73.1804]
[1718985574718,0.8533461,131.49,131.48,73.0104]
[1718985574926,0.8533461,131.49,131.48,6.0845]
[1718985575116,0.8533461,131.49,131.45,29.24]
[1718985575423,0.8533461,131.49,131.44,22.0443]
[1718985575424,0.8533461,131.49,131.46,6.0852]
[1718985575730,0.8533461,131.49,131.48,6.0845]
[1718985576325,0.8533461,131.49,131.46,6.0851]
[1718985576716,0.8533461,131.49,131.47,6.0849]
[1718985577033,0.8533461,131.49,131.44,22.0443]